[Event "Late-Titled-Tuesday-Blitz-March-19-2024"]
[Site "Chess.com"]
[Date "2024.03.19"]
[Round "9"]
[White "Likvidator228"]
[Black "Bkmzzzzz"]
[Result "1-0"]
[WhiteElo "2556"]
[BlackElo "2386"]
[TimeControl "180+1"]
[EndTime "15:43:14 PDT"]
[Termination "Likvidator228 won on time"]

1. g4 {[%clk 0:03:00.9]} 1... d5 {[%clk 0:02:52.5]} 2. Bg2 {[%clk 0:03:01]} 2...
Bxg4 {[%clk 0:02:48.1]} 3. c4 {[%clk 0:03:01]} 3... c6 {[%clk 0:02:44.9]} 4. Qb3
{[%clk 0:02:59.4]} 4... Nd7 {[%clk 0:02:13.1]} 5. Qxb7 {[%clk 0:02:43.1]} 5...
Qc8 {[%clk 0:02:07.3]} 6. Qxc8+ {[%clk 0:02:38.7]} 6... Rxc8 {[%clk 0:02:08.2]}
7. d3 {[%clk 0:02:14.6]} 7... e6 {[%clk 0:02:00.8]} 8. Nc3 {[%clk 0:02:11.4]}
8... Nb6 {[%clk 0:01:46.2]} 9. b3 {[%clk 0:02:05.8]} 9... Bb4 {[%clk 0:01:43.7]}
10. Bd2 {[%clk 0:02:06]} 10... Nf6 {[%clk 0:01:43.3]} 11. a3 {[%clk 0:01:59.4]}
11... Be7 {[%clk 0:01:36.9]} 12. Nf3 {[%clk 0:01:58.4]} 12... O-O {[%clk
0:01:33.6]} 13. O-O {[%clk 0:01:52.9]} 13... Rfd8 {[%clk 0:01:29.7]} 14. Rfc1
{[%clk 0:01:37.4]} 14... dxc4 {[%clk 0:01:17.8]} 15. bxc4 {[%clk 0:01:37.2]}
15... Nxc4 {[%clk 0:01:04]} 16. Bf4 {[%clk 0:01:20.2]} 16... Nb6 {[%clk
0:00:52.5]} 17. Ne5 {[%clk 0:01:19]} 17... Nbd5 {[%clk 0:00:38.9]} 18. Nxd5
{[%clk 0:01:16.1]} 18... cxd5 {[%clk 0:00:39.8]} 19. Nxg4 {[%clk 0:01:10.3]}
19... Nxg4 {[%clk 0:00:37.3]} 20. Bc7 {[%clk 0:01:00.8]} 20... Re8 {[%clk
0:00:22.4]} 21. h3 {[%clk 0:01:00.9]} 21... Nf6 {[%clk 0:00:22.2]} 22. d4 {[%clk
0:00:57.6]} 22... g6 {[%clk 0:00:21.1]} 23. e3 {[%clk 0:00:57.5]} 23... h5
{[%clk 0:00:20.7]} 24. Bf1 {[%clk 0:00:57.5]} 24... Ne4 {[%clk 0:00:20.1]} 25.
Ba6 {[%clk 0:00:56]} 25... Nd2 {[%clk 0:00:12.2]} 26. Bxc8 {[%clk 0:00:53.7]}
26... Rxc8 {[%clk 0:00:13.1]} 27. Ba5 {[%clk 0:00:49.6]} 27... Nc4 {[%clk
0:00:12.8]} 28. Bb4 {[%clk 0:00:48.9]} 28... Bd8 {[%clk 0:00:11.1]} 29. Bc5
{[%clk 0:00:45.1]} 29... a6 {[%clk 0:00:08.9]} 30. Rab1 {[%clk 0:00:43.8]} 30...
Kg7 {[%clk 0:00:04.7]} 31. Rb7 {[%clk 0:00:43.8]} 31... Rc6 {[%clk 0:00:04.4]}
32. Rd7 {[%clk 0:00:32.6]} 32... Bb6 {[%clk 0:00:03.5]} 33. Be7 {[%clk
0:00:13.9]} 33... Ba5 {[%clk 0:00:01.6]} 34. Rb1 {[%clk 0:00:13.5]} 1-0

[Event "Late-Titled-Tuesday-Blitz-March-19-2024"]
[Site "Chess.com"]
[Date "2024.03.19"]
[Round "9"]
[White "Yeritsyaan"]
[Black "Rawnsdale"]
[Result "1/2-1/2"]
[WhiteElo "2672"]
[BlackElo "2547"]
[TimeControl "180+1"]
[EndTime "15:43:15 PDT"]
[Termination "Game drawn by stalemate"]

1. b3 {[%clk 0:02:59.8]} 1... e5 {[%clk 0:02:57.6]} 2. Bb2 {[%clk 0:03:00.2]}
2... Nc6 {[%clk 0:02:58.5]} 3. e3 {[%clk 0:03:00.4]} 3... Nf6 {[%clk 0:02:58.6]}
4. Bb5 {[%clk 0:02:59.8]} 4... Bd6 {[%clk 0:02:49]} 5. Ne2 {[%clk 0:02:59.3]}
5... O-O {[%clk 0:02:48.4]} 6. O-O {[%clk 0:02:58.8]} 6... a6 {[%clk 0:02:48.7]}
7. Bxc6 {[%clk 0:02:58.3]} 7... dxc6 {[%clk 0:02:49.6]} 8. d3 {[%clk 0:02:56.3]}
8... Re8 {[%clk 0:02:45.9]} 9. e4 {[%clk 0:02:56.4]} 9... Bg4 {[%clk 0:02:41.2]}
10. f3 {[%clk 0:02:56.2]} 10... Be6 {[%clk 0:02:38.5]} 11. Nd2 {[%clk
0:02:56.5]} 11... b5 {[%clk 0:02:29.3]} 12. Kh1 {[%clk 0:02:49.9]} 12... Nh5
{[%clk 0:02:25.8]} 13. Qe1 {[%clk 0:02:48.7]} 13... Qg5 {[%clk 0:02:23.4]} 14.
f4 {[%clk 0:02:35.7]} 14... exf4 {[%clk 0:02:19.2]} 15. Nf3 {[%clk 0:02:35.6]}
15... Qh6 {[%clk 0:02:19.2]} 16. Qh4 {[%clk 0:02:27.9]} 16... Be7 {[%clk
0:02:09]} 17. Qf2 {[%clk 0:02:26.8]} 17... Bg4 {[%clk 0:01:52.3]} 18. Kg1 {[%clk
0:02:25.6]} 18... Rad8 {[%clk 0:01:29.5]} 19. a4 {[%clk 0:02:24.8]} 19... b4
{[%clk 0:01:14.6]} 20. Rad1 {[%clk 0:02:14.6]} 20... Bf6 {[%clk 0:01:01.3]} 21.
Bxf6 {[%clk 0:02:01.8]} 21... Nxf6 {[%clk 0:00:58.6]} 22. Nd2 {[%clk 0:01:58.7]}
22... Nh5 {[%clk 0:00:40.8]} 23. Rde1 {[%clk 0:01:56.8]} 23... Re6 {[%clk
0:00:37.4]} 24. Nd4 {[%clk 0:01:42.2]} 24... Rg6 {[%clk 0:00:35.8]} 25. Nf5
{[%clk 0:01:38.7]} 25... Qg5 {[%clk 0:00:32.1]} 26. Nf3 {[%clk 0:01:31.4]} 26...
Bxf3 {[%clk 0:00:26.1]} 27. Qxf3 {[%clk 0:01:32.3]} 27... Re8 {[%clk 0:00:23.8]}
28. Rf2 {[%clk 0:01:23.6]} 28... Rf6 {[%clk 0:00:16.5]} 29. Ref1 {[%clk
0:01:07.8]} 29... g6 {[%clk 0:00:14.6]} 30. h4 {[%clk 0:01:08.2]} 30... Rxf5
{[%clk 0:00:07.2]} 31. hxg5 {[%clk 0:01:08.5]} 31... Rxg5 {[%clk 0:00:08.1]} 32.
Qh3 {[%clk 0:01:04]} 32... Re6 {[%clk 0:00:06.5]} 33. Rxf4 {[%clk 0:01:04.1]}
33... Nxf4 {[%clk 0:00:07.4]} 34. Rxf4 {[%clk 0:01:03.8]} 34... Kg7 {[%clk
0:00:06.6]} 35. Qf3 {[%clk 0:01:03.2]} 35... Re7 {[%clk 0:00:06.8]} 36. Qf2
{[%clk 0:01:02.4]} 36... c5 {[%clk 0:00:06.1]} 37. Rf6 {[%clk 0:00:59.6]} 37...
h5 {[%clk 0:00:05.1]} 38. Rc6 {[%clk 0:00:59.5]} 38... h4 {[%clk 0:00:05.7]} 39.
Rxc5 {[%clk 0:00:59.2]} 39... Rg4 {[%clk 0:00:03.5]} 40. Kh2 {[%clk 0:00:58]}
40... Re8 {[%clk 0:00:02.4]} 41. Rxc7 {[%clk 0:00:55.8]} 41... Rf8 {[%clk
0:00:02.1]} 42. e5 {[%clk 0:00:54]} 42... Rg5 {[%clk 0:00:01.4]} 43. e6 {[%clk
0:00:54]} 43... h3 {[%clk 0:00:01.5]} 44. Rxf7+ {[%clk 0:00:53.5]} 44... Rxf7
{[%clk 0:00:01.6]} 45. Qxf7+ {[%clk 0:00:54.4]} 45... Kh6 {[%clk 0:00:02.3]} 46.
Kxh3 {[%clk 0:00:54.4]} 46... Rh5+ {[%clk 0:00:02.5]} 47. Kg4 {[%clk 0:00:54.4]}
47... Rg5+ {[%clk 0:00:03.4]} 48. Kf4 {[%clk 0:00:54.6]} 48... a5 {[%clk
0:00:04.3]} 49. Qf8+ {[%clk 0:00:53.2]} 49... Kh7 {[%clk 0:00:03.9]} 50. Kxg5
{[%clk 0:00:53.4]} 1/2-1/2

[Event "Late-Titled-Tuesday-Blitz-March-19-2024"]
[Site "Chess.com"]
[Date "2024.03.19"]
[Round "9"]
[White "ninguno46"]
[Black "Leo_C"]
[Result "0-1"]
[WhiteElo "2536"]
[BlackElo "2660"]
[TimeControl "180+1"]
[EndTime "15:43:17 PDT"]
[Termination "Leo_C won by resignation"]

1. e4 {[%clk 0:03:00.1]} 1... c5 {[%clk 0:02:56.2]} 2. Nc3 {[%clk 0:02:59.5]}
2... Nc6 {[%clk 0:02:55.4]} 3. f4 {[%clk 0:02:58.8]} 3... g6 {[%clk 0:02:54.8]}
4. Nf3 {[%clk 0:02:59.1]} 4... Bg7 {[%clk 0:02:55.3]} 5. Bb5 {[%clk 0:02:58.8]}
5... Nd4 {[%clk 0:02:53.9]} 6. O-O {[%clk 0:02:58.1]} 6... e6 {[%clk 0:02:51.2]}
7. d3 {[%clk 0:02:54.7]} 7... a6 {[%clk 0:02:48.5]} 8. Bc4 {[%clk 0:02:54.4]}
8... b5 {[%clk 0:02:48]} 9. Bb3 {[%clk 0:02:54.5]} 9... Bb7 {[%clk 0:02:46.4]}
10. Nxd4 {[%clk 0:02:53.9]} 10... cxd4 {[%clk 0:02:46.1]} 11. Ne2 {[%clk
0:02:53.5]} 11... Ne7 {[%clk 0:02:44.5]} 12. Qe1 {[%clk 0:02:52.9]} 12... d6
{[%clk 0:02:41.8]} 13. Qf2 {[%clk 0:02:50.3]} 13... Nc6 {[%clk 0:01:46.6]} 14.
f5 {[%clk 0:02:45]} 14... gxf5 {[%clk 0:01:45.5]} 15. exf5 {[%clk 0:02:44.7]}
15... e5 {[%clk 0:01:46]} 16. f6 {[%clk 0:02:35.2]} 16... Bf8 {[%clk 0:01:45.7]}
17. Ng3 {[%clk 0:02:26.1]} 17... Na5 {[%clk 0:01:42.8]} 18. Bd2 {[%clk
0:01:58.8]} 18... Nxb3 {[%clk 0:01:40.9]} 19. axb3 {[%clk 0:01:59.4]} 19... Qc7
{[%clk 0:01:34.6]} 20. c3 {[%clk 0:01:57.4]} 20... dxc3 {[%clk 0:01:32.9]} 21.
Bxc3 {[%clk 0:01:53.5]} 21... Rg8 {[%clk 0:01:30.5]} 22. Rae1 {[%clk 0:01:50.9]}
22... O-O-O {[%clk 0:01:10.4]} 23. d4 {[%clk 0:01:41.2]} 23... Kb8 {[%clk
0:00:53.1]} 24. Rc1 {[%clk 0:01:38]} 24... Qb6 {[%clk 0:00:46.9]} 25. dxe5
{[%clk 0:01:31.2]} 25... Qxf2+ {[%clk 0:00:46.3]} 26. Rxf2 {[%clk 0:01:30.9]}
26... dxe5 {[%clk 0:00:42.4]} 27. Bxe5+ {[%clk 0:01:29.9]} 27... Ka8 {[%clk
0:00:38]} 28. Rc7 {[%clk 0:00:39]} 28... Rd1+ {[%clk 0:00:29.5]} 29. Nf1 {[%clk
0:00:33.2]} 29... Rd5 {[%clk 0:00:28.7]} 30. Re2 {[%clk 0:00:19]} 30... Rxe5
{[%clk 0:00:16.4]} 31. Rxe5 {[%clk 0:00:18.5]} 31... Rxg2+ {[%clk 0:00:16.2]}
32. Kh1 {[%clk 0:00:18.8]} 32... Rf2+ {[%clk 0:00:15.1]} 33. Rxb7 {[%clk
0:00:18.7]} 33... Kxb7 {[%clk 0:00:15.6]} 34. Kg1 {[%clk 0:00:18.6]} 34... Rxf6
{[%clk 0:00:14.8]} 35. Ng3 {[%clk 0:00:17.9]} 35... Bd6 {[%clk 0:00:14.1]} 36.
Re3 {[%clk 0:00:17.2]} 36... Bc5 {[%clk 0:00:13.5]} 37. Nf1 {[%clk 0:00:15]}
37... Rxf1+ {[%clk 0:00:11.5]} 38. Kxf1 {[%clk 0:00:15.9]} 38... Bxe3 {[%clk
0:00:11.6]} 39. Ke2 {[%clk 0:00:16.8]} 39... Bd4 {[%clk 0:00:11.8]} 40. h4
{[%clk 0:00:17.1]} 40... Bxb2 {[%clk 0:00:12.2]} 0-1

[Event "Late-Titled-Tuesday-Blitz-March-19-2024"]
[Site "Chess.com"]
[Date "2024.03.19"]
[Round "9"]
[White "Goryachkina"]
[Black "FaustinoOro"]
[Result "1-0"]
[WhiteElo "2671"]
[BlackElo "2843"]
[TimeControl "180+1"]
[EndTime "15:43:18 PDT"]
[Termination "Goryachkina won on time"]

1. e4 {[%clk 0:02:59.6]} 1... e5 {[%clk 0:02:55.6]} 2. Nf3 {[%clk 0:02:59.4]}
2... Nc6 {[%clk 0:02:55.5]} 3. Nc3 {[%clk 0:02:59.3]} 3... Nf6 {[%clk
0:02:54.8]} 4. Bb5 {[%clk 0:02:59.3]} 4... Bb4 {[%clk 0:02:51.9]} 5. O-O {[%clk
0:02:57.8]} 5... O-O {[%clk 0:02:49.3]} 6. d3 {[%clk 0:02:57.8]} 6... d6 {[%clk
0:02:48.5]} 7. Ne2 {[%clk 0:02:57.1]} 7... Ne7 {[%clk 0:02:45]} 8. Ng3 {[%clk
0:02:54.7]} 8... Ng6 {[%clk 0:02:44.7]} 9. c3 {[%clk 0:02:53.8]} 9... Bc5 {[%clk
0:02:42.5]} 10. d4 {[%clk 0:02:53.7]} 10... Bb6 {[%clk 0:02:42.6]} 11. h3 {[%clk
0:02:50.8]} 11... c6 {[%clk 0:02:40.2]} 12. Ba4 {[%clk 0:02:47.9]} 12... Re8
{[%clk 0:02:34]} 13. Re1 {[%clk 0:02:46.7]} 13... h6 {[%clk 0:02:32.2]} 14. Bc2
{[%clk 0:02:42.5]} 14... Bc7 {[%clk 0:02:25.6]} 15. Be3 {[%clk 0:02:32.2]} 15...
Be6 {[%clk 0:02:24.8]} 16. Qd2 {[%clk 0:02:17.9]} 16... Qe7 {[%clk 0:01:54.7]}
17. Rad1 {[%clk 0:02:10.5]} 17... Rad8 {[%clk 0:01:53.1]} 18. Qc1 {[%clk
0:01:44.8]} 18... Qf8 {[%clk 0:01:39.8]} 19. b3 {[%clk 0:01:31.6]} 19... b5
{[%clk 0:01:23.4]} 20. a4 {[%clk 0:01:09.5]} 20... a6 {[%clk 0:01:18]} 21. b4
{[%clk 0:01:07.1]} 21... Bb6 {[%clk 0:00:58.6]} 22. a5 {[%clk 0:01:04.3]} 22...
Bc7 {[%clk 0:00:58.4]} 23. Nf5 {[%clk 0:01:03.3]} 23... Nd7 {[%clk 0:00:36.3]}
24. Nxh6+ {[%clk 0:00:47.5]} 24... gxh6 {[%clk 0:00:35.3]} 25. Bxh6 {[%clk
0:00:48.1]} 25... Qe7 {[%clk 0:00:30.3]} 26. d5 {[%clk 0:00:48.1]} 26... Bxh3
{[%clk 0:00:22.8]} 27. gxh3 {[%clk 0:00:47.5]} 27... c5 {[%clk 0:00:22.1]} 28.
Kh2 {[%clk 0:00:44.8]} 28... Kh7 {[%clk 0:00:20.8]} 29. Rg1 {[%clk 0:00:41.6]}
29... Rg8 {[%clk 0:00:09.6]} 30. Rg2 {[%clk 0:00:28.2]} 30... f6 {[%clk
0:00:06.4]} 31. Rdg1 {[%clk 0:00:27.4]} 31... Qf7 {[%clk 0:00:06.7]} 32. Be3
{[%clk 0:00:17.9]} 32... cxb4 {[%clk 0:00:05.5]} 33. cxb4 {[%clk 0:00:18]} 33...
Rc8 {[%clk 0:00:05.4]} 34. Qd1 {[%clk 0:00:17.4]} 34... Bd8 {[%clk 0:00:03.4]}
35. Nd2 {[%clk 0:00:16]} 1-0

[Event "Late-Titled-Tuesday-Blitz-March-19-2024"]
[Site "Chess.com"]
[Date "2024.03.19"]
[Round "9"]
[White "KNVB"]
[Black "Bilan_Danila"]
[Result "1-0"]
[WhiteElo "2807"]
[BlackElo "2647"]
[TimeControl "180+1"]
[EndTime "15:43:23 PDT"]
[Termination "KNVB won by resignation"]

1. e4 {[%clk 0:03:00.8]} 1... e5 {[%clk 0:02:51.6]} 2. Nf3 {[%clk 0:03:00.7]}
2... Nc6 {[%clk 0:02:50.3]} 3. Nc3 {[%clk 0:03:00.6]} 3... Bb4 {[%clk
0:02:39.4]} 4. Nd5 {[%clk 0:02:57.1]} 4... Bc5 {[%clk 0:02:37.3]} 5. c3 {[%clk
0:02:06.8]} 5... d6 {[%clk 0:02:16.4]} 6. Bc4 {[%clk 0:01:59.2]} 6... Nge7
{[%clk 0:02:05.2]} 7. d4 {[%clk 0:01:50]} 7... exd4 {[%clk 0:01:55.1]} 8. cxd4
{[%clk 0:01:17.9]} 8... Bb6 {[%clk 0:01:54.6]} 9. Ng5 {[%clk 0:00:55.6]} 9...
Ba5+ {[%clk 0:01:27.7]} 10. Kf1 {[%clk 0:00:32.6]} 10... Be6 {[%clk 0:00:36.3]}
11. b4 {[%clk 0:00:16.2]} 11... Bxb4 {[%clk 0:00:24.5]} 12. Nxe6 {[%clk
0:00:12]} 12... fxe6 {[%clk 0:00:25.4]} 13. Nxb4 {[%clk 0:00:12.5]} 13... Nxb4
{[%clk 0:00:25.6]} 14. Qa4+ {[%clk 0:00:13.2]} 14... Nbc6 {[%clk 0:00:23.5]} 15.
d5 {[%clk 0:00:13.8]} 15... Qd7 {[%clk 0:00:20.3]} 16. dxc6 {[%clk 0:00:12.7]}
16... bxc6 {[%clk 0:00:21.2]} 17. Be3 {[%clk 0:00:09.2]} 17... O-O {[%clk
0:00:20.9]} 18. Rd1 {[%clk 0:00:08.4]} 18... Rf7 {[%clk 0:00:17.5]} 19. g3
{[%clk 0:00:05.7]} 19... Raf8 {[%clk 0:00:17.3]} 20. Kg2 {[%clk 0:00:06.3]}
20... d5 {[%clk 0:00:17.4]} 21. Bb3 {[%clk 0:00:06.5]} 21... Qd6 {[%clk
0:00:16]} 22. Qd4 {[%clk 0:00:02.9]} 22... Ng6 {[%clk 0:00:13.6]} 23. exd5
{[%clk 0:00:02.7]} 23... exd5 {[%clk 0:00:13.8]} 24. Rhe1 {[%clk 0:00:02.9]}
24... h6 {[%clk 0:00:11.6]} 25. Kg1 {[%clk 0:00:03.1]} 25... Re8 {[%clk
0:00:10.8]} 26. f4 {[%clk 0:00:03.2]} 26... Rfe7 {[%clk 0:00:11]} 27. Bf2 {[%clk
0:00:03.7]} 27... Kh7 {[%clk 0:00:10.3]} 28. Rxe7 {[%clk 0:00:03.7]} 28... Rxe7
{[%clk 0:00:10.9]} 29. Bc2 {[%clk 0:00:04]} 29... Kg8 {[%clk 0:00:10.5]} 30. Qd3
{[%clk 0:00:04]} 30... Nf8 {[%clk 0:00:10.6]} 31. Re1 {[%clk 0:00:03.8]} 31...
Nd7 {[%clk 0:00:10.8]} 32. Rxe7 {[%clk 0:00:03.8]} 32... Qxe7 {[%clk 0:00:11.7]}
33. Qe3 {[%clk 0:00:03.9]} 33... Qxe3 {[%clk 0:00:11.1]} 34. Bxe3 {[%clk
0:00:04.4]} 34... a6 {[%clk 0:00:11.9]} 35. Bd3 {[%clk 0:00:03.1]} 35... c5
{[%clk 0:00:10.5]} 36. Bxa6 {[%clk 0:00:02.9]} 36... d4 {[%clk 0:00:11.1]} 37.
Bd2 {[%clk 0:00:02.3]} 37... Nb6 {[%clk 0:00:11.8]} 38. Ba5 {[%clk 0:00:02.3]}
38... Nd5 {[%clk 0:00:12.1]} 39. Bc4 {[%clk 0:00:02.8]} 1-0

[Event "Late-Titled-Tuesday-Blitz-March-19-2024"]
[Site "Chess.com"]
[Date "2024.03.19"]
[Round "9"]
[White "KuzubovYuriy"]
[Black "chess94cu"]
[Result "1-0"]
[WhiteElo "2911"]
[BlackElo "2668"]
[TimeControl "180+1"]
[EndTime "15:43:25 PDT"]
[Termination "KuzubovYuriy won on time"]

1. d4 {[%clk 0:03:00.9]} 1... Nf6 {[%clk 0:02:58.1]} 2. c4 {[%clk 0:03:00.5]}
2... e6 {[%clk 0:02:58.3]} 3. Nf3 {[%clk 0:03:00.2]} 3... d5 {[%clk 0:02:58.2]}
4. Nc3 {[%clk 0:03:00.1]} 4... Nbd7 {[%clk 0:02:58.2]} 5. cxd5 {[%clk
0:02:58.5]} 5... exd5 {[%clk 0:02:59.1]} 6. Bf4 {[%clk 0:02:52.7]} 6... c6
{[%clk 0:02:58]} 7. e3 {[%clk 0:02:52.9]} 7... Nh5 {[%clk 0:02:50.8]} 8. Qc2
{[%clk 0:02:50.5]} 8... Nxf4 {[%clk 0:02:47]} 9. exf4 {[%clk 0:02:50.6]} 9...
Bd6 {[%clk 0:02:47.6]} 10. g3 {[%clk 0:02:48.6]} 10... Nf6 {[%clk 0:02:45.3]}
11. Bd3 {[%clk 0:02:47.9]} 11... Bh3 {[%clk 0:02:37]} 12. Ne5 {[%clk 0:02:45.3]}
12... Bb4 {[%clk 0:02:02.6]} 13. f3 {[%clk 0:02:28.3]} 13... Qa5 {[%clk
0:01:46.5]} 14. Kf2 {[%clk 0:01:58.5]} 14... h5 {[%clk 0:01:34.9]} 15. Rhe1
{[%clk 0:01:51.8]} 15... Kf8 {[%clk 0:01:29.4]} 16. a3 {[%clk 0:01:51]} 16...
Bd6 {[%clk 0:01:23.3]} 17. Na4 {[%clk 0:01:43.2]} 17... Re8 {[%clk 0:01:15.7]}
18. b4 {[%clk 0:01:38.7]} 18... Qc7 {[%clk 0:01:14.3]} 19. Rac1 {[%clk
0:01:35.8]} 19... Qd8 {[%clk 0:00:52.9]} 20. f5 {[%clk 0:01:12.6]} 20... Nd7
{[%clk 0:00:42.1]} 21. f4 {[%clk 0:01:07.7]} 21... Nf6 {[%clk 0:00:40.4]} 22.
Nc5 {[%clk 0:01:05.1]} 22... Qc8 {[%clk 0:00:36.2]} 23. b5 {[%clk 0:01:01.2]}
23... h4 {[%clk 0:00:34.4]} 24. bxc6 {[%clk 0:00:57.3]} 24... bxc6 {[%clk
0:00:35.3]} 25. Rb1 {[%clk 0:00:42.7]} 25... Ng4+ {[%clk 0:00:21.6]} 26. Kg1
{[%clk 0:00:36.4]} 26... Nh6 {[%clk 0:00:19]} 27. Rb7 {[%clk 0:00:24.3]} 27...
Bxe5 {[%clk 0:00:14.9]} 28. fxe5 {[%clk 0:00:16.4]} 28... Bxf5 {[%clk
0:00:12.9]} 29. Rf1 {[%clk 0:00:09.7]} 29... g6 {[%clk 0:00:08.2]} 30. e6 {[%clk
0:00:05.8]} 30... fxe6 {[%clk 0:00:05.9]} 31. Nd7+ {[%clk 0:00:06.2]} 31... Ke7
{[%clk 0:00:02.3]} 32. Nc5+ {[%clk 0:00:06.1]} 32... Kf6 {[%clk 0:00:01.7]} 33.
Qe2 {[%clk 0:00:04.7]} 1-0

[Event "Late-Titled-Tuesday-Blitz-March-19-2024"]
[Site "Chess.com"]
[Date "2024.03.19"]
[Round "9"]
[White "TheMagician"]
[Black "Kavyev_Ruslan"]
[Result "0-1"]
[WhiteElo "2228"]
[BlackElo "2443"]
[TimeControl "180+1"]
[EndTime "15:43:28 PDT"]
[Termination "Kavyev_Ruslan won on time"]

1. d4 {[%clk 0:02:59.8]} 1... d5 {[%clk 0:02:56.2]} 2. c4 {[%clk 0:02:57.7]}
2... e6 {[%clk 0:02:56.2]} 3. Nc3 {[%clk 0:02:57.2]} 3... Nf6 {[%clk 0:02:55.5]}
4. Bg5 {[%clk 0:02:55.4]} 4... Be7 {[%clk 0:02:48.9]} 5. e3 {[%clk 0:02:55.1]}
5... h6 {[%clk 0:02:42.3]} 6. Bh4 {[%clk 0:02:52.8]} 6... g5 {[%clk 0:02:34.5]}
7. Bg3 {[%clk 0:02:52.7]} 7... c5 {[%clk 0:02:34.7]} 8. cxd5 {[%clk 0:02:39]}
8... Nxd5 {[%clk 0:02:35.6]} 9. Nge2 {[%clk 0:02:04.4]} 9... Nc6 {[%clk
0:02:34]} 10. Nxd5 {[%clk 0:02:00.7]} 10... Qxd5 {[%clk 0:02:28.8]} 11. Nc3
{[%clk 0:02:00.7]} 11... Qd8 {[%clk 0:02:22.7]} 12. d5 {[%clk 0:02:01.1]} 12...
exd5 {[%clk 0:02:18.1]} 13. Nxd5 {[%clk 0:01:59]} 13... Qa5+ {[%clk 0:01:53]}
14. Qd2 {[%clk 0:01:47.1]} 14... Qxd2+ {[%clk 0:01:47.5]} 15. Kxd2 {[%clk
0:01:47.2]} 15... Bd8 {[%clk 0:01:28.1]} 16. Nc7+ {[%clk 0:01:11.3]} 16... Bxc7
{[%clk 0:01:27.4]} 17. Bxc7 {[%clk 0:01:11.4]} 17... Be6 {[%clk 0:01:26.1]} 18.
a3 {[%clk 0:00:48]} 18... Rc8 {[%clk 0:01:19.6]} 19. Bg3 {[%clk 0:00:46.4]}
19... Ke7 {[%clk 0:01:20.1]} 20. Be2 {[%clk 0:00:43.6]} 20... Rhd8+ {[%clk
0:01:15.7]} 21. Ke1 {[%clk 0:00:37.8]} 21... Na5 {[%clk 0:01:08.9]} 22. h4
{[%clk 0:00:29]} 22... Nb3 {[%clk 0:01:08.7]} 23. Rd1 {[%clk 0:00:28.3]} 23...
Rxd1+ {[%clk 0:00:51.2]} 24. Bxd1 {[%clk 0:00:28.4]} 24... b5 {[%clk 0:00:29.3]}
25. hxg5 {[%clk 0:00:25.2]} 25... hxg5 {[%clk 0:00:29.3]} 26. Rh5 {[%clk
0:00:19.8]} 26... Kf6 {[%clk 0:00:18.6]} 27. f4 {[%clk 0:00:17.4]} 27... gxf4
{[%clk 0:00:17]} 28. Bxf4 {[%clk 0:00:06.9]} 28... Kg6 {[%clk 0:00:17.1]} 29.
Rh6+ {[%clk 0:00:06.7]} 29... Kg7 {[%clk 0:00:17.3]} 30. Rh5 {[%clk 0:00:07]}
30... Kg6 {[%clk 0:00:15.8]} 31. Re5 {[%clk 0:00:05.8]} 31... Na5 {[%clk
0:00:11.1]} 32. b4 {[%clk 0:00:02.9]} 32... Nc4 {[%clk 0:00:11]} 33. Rxc5 {[%clk
0:00:02.3]} 33... Rxc5 {[%clk 0:00:10]} 34. bxc5 {[%clk 0:00:03.1]} 34... Nxa3
{[%clk 0:00:10.7]} 35. c6 {[%clk 0:00:03.7]} 35... b4 {[%clk 0:00:07.8]} 0-1

[Event "Late-Titled-Tuesday-Blitz-March-19-2024"]
[Site "Chess.com"]
[Date "2024.03.19"]
[Round "9"]
[White "liwadas82"]
[Black "EcosseKillie"]
[Result "1-0"]
[WhiteElo "2516"]
[BlackElo "2329"]
[TimeControl "180+1"]
[EndTime "15:43:33 PDT"]
[Termination "liwadas82 won on time"]

1. e4 {[%clk 0:02:55.6]} 1... Nf6 {[%clk 0:02:59.3]} 2. e5 {[%clk 0:02:55.5]}
2... Nd5 {[%clk 0:02:59.4]} 3. d4 {[%clk 0:02:56.2]} 3... d6 {[%clk 0:02:59.8]}
4. Nf3 {[%clk 0:02:56.3]} 4... dxe5 {[%clk 0:02:58.8]} 5. Nxe5 {[%clk 0:02:54]}
5... g6 {[%clk 0:02:59.1]} 6. Bc4 {[%clk 0:02:50.5]} 6... Be6 {[%clk 0:02:58.9]}
7. Qe2 {[%clk 0:02:44.8]} 7... Bg7 {[%clk 0:02:52.3]} 8. O-O {[%clk 0:02:44.8]}
8... O-O {[%clk 0:02:51.3]} 9. c3 {[%clk 0:02:41.8]} 9... Nd7 {[%clk 0:02:45.3]}
10. Nf3 {[%clk 0:02:39.9]} 10... c5 {[%clk 0:02:38.8]} 11. Ng5 {[%clk
0:02:35.6]} 11... N7b6 {[%clk 0:02:11.7]} 12. Nxe6 {[%clk 0:02:33.7]} 12... fxe6
{[%clk 0:02:12.6]} 13. Qxe6+ {[%clk 0:02:33.4]} 13... Kh8 {[%clk 0:02:13.5]} 14.
Bxd5 {[%clk 0:02:30.7]} 14... Nxd5 {[%clk 0:02:13.5]} 15. dxc5 {[%clk
0:02:26.6]} 15... Rc8 {[%clk 0:02:11]} 16. Bg5 {[%clk 0:02:07.9]} 16... Rf5
{[%clk 0:02:03.6]} 17. Bh4 {[%clk 0:01:59.5]} 17... Re5 {[%clk 0:01:53.8]} 18.
Qg4 {[%clk 0:01:43.7]} 18... Rxc5 {[%clk 0:01:50.9]} 19. Rd1 {[%clk 0:01:26.1]}
19... Qf8 {[%clk 0:01:37.7]} 20. Bg3 {[%clk 0:01:22.7]} 20... Rf5 {[%clk
0:01:22.8]} 21. Nd2 {[%clk 0:01:23.4]} 21... Nf6 {[%clk 0:01:21.4]} 22. Qe2
{[%clk 0:01:21.4]} 22... Nh5 {[%clk 0:01:11.5]} 23. Ne4 {[%clk 0:01:17.6]} 23...
Nxg3 {[%clk 0:01:11.7]} 24. hxg3 {[%clk 0:01:15.7]} 24... Rc8 {[%clk 0:01:04]}
25. Re1 {[%clk 0:01:07.8]} 25... b5 {[%clk 0:00:58.2]} 26. a3 {[%clk 0:01:06.3]}
26... a5 {[%clk 0:00:57.8]} 27. Rad1 {[%clk 0:00:59.3]} 27... Rb8 {[%clk
0:00:48.9]} 28. g4 {[%clk 0:00:58.2]} 28... Re5 {[%clk 0:00:40.5]} 29. Qd3
{[%clk 0:00:54.8]} 29... b4 {[%clk 0:00:32.9]} 30. axb4 {[%clk 0:00:54.1]} 30...
axb4 {[%clk 0:00:33.8]} 31. c4 {[%clk 0:00:52.8]} 31... Qf4 {[%clk 0:00:26.9]}
32. f3 {[%clk 0:00:43.3]} 32... Ra5 {[%clk 0:00:20.1]} 33. b3 {[%clk 0:00:35.3]}
33... Ra2 {[%clk 0:00:18.6]} 34. Re2 {[%clk 0:00:33.8]} 34... Rxe2 {[%clk
0:00:14.2]} 35. Qxe2 {[%clk 0:00:33.7]} 35... Rf8 {[%clk 0:00:13.3]} 36. Qd2
{[%clk 0:00:29.1]} 36... Qc7 {[%clk 0:00:07.4]} 37. Qxb4 {[%clk 0:00:27]} 37...
Rc8 {[%clk 0:00:02.5]} 38. Qb5 {[%clk 0:00:23.7]} 38... Rd8 {[%clk 0:00:01.2]}
39. Rxd8+ {[%clk 0:00:22.3]} 39... Qxd8 {[%clk 0:00:02.1]} 40. Qd5 {[%clk
0:00:22.5]} 40... Qb6+ {[%clk 0:00:01.1]} 41. c5 {[%clk 0:00:22.5]} 41... Qxb3
{[%clk 0:00:01.2]} 42. Qxb3 {[%clk 0:00:21.8]} 1-0